bitfinex/quotes_BTCUSD_20241020
["timestamp","ask_amount","ask_price","bid_price","bid_amount"]
[1729455724989,0.1396689,68565.0,68564.0,1.64424487]
[1729455725217,0.1396689,68565.0,68564.0,1.70981148]
[1729455725658,0.1396689,68565.0,68564.0,1.70981219]
[1729455725873,0.0396689,68565.0,68564.0,1.70981219]
[1729455726298,0.0396689,68565.0,68564.0,1.64424558]
[1729455726961,0.0396689,68565.0,68564.0,1.70981092]
[1729455727175,0.0396689,68565.0,68564.0,1.70981161]
[1729455727364,0.0396689,68565.0,68564.0,1.70981388]
[1729455729123,0.0396689,68565.0,68564.0,1.65065545]
[1729455729350,0.0396689,68565.0,68564.0,1.70982445]
[1729455729565,0.0396689,68565.0,68564.0,1.70982465]
[1729455729774,0.0396689,68565.0,68564.0,1.70982839]
[1729455730462,0.0396689,68565.0,68564.0,1.64425635]
[1729455730686,0.0396689,68565.0,68564.0,1.73168362]
[1729455731161,0.028656,68565.0,68564.0,1.63536478]
[1729455731391,0.028656,68565.0,68564.0,1.64425594]
[1729455731629,0.028656,68565.0,68564.0,1.70982626]
[1729455731869,0.028656,68565.0,68564.0,1.64425594]
[1729455732103,0.028656,68565.0,68564.0,1.70982128]
[1729455732847,0.028656,68565.0,68564.0,1.56086051]
[1729455732848,0.03967014,68565.0,68564.0,1.56086051]
[1729455733065,0.03967014,68565.0,68564.0,1.53901148]
[1729455733295,0.03967014,68565.0,68564.0,1.49529679]
[1729455733502,0.03967014,68565.0,68564.0,1.56086051]
[1729455733730,0.03967014,68565.0,68564.0,1.48640547]
[1729455733976,0.03967014,68565.0,68564.0,1.67907811]
[1729455734230,0.03967014,68565.0,68564.0,1.63536462]
[1729455734942,0.03967014,68565.0,68564.0,1.67907896]
[1729455735405,0.03967014,68565.0,68564.0,1.63536462]
[1729455735902,0.03967014,68565.0,68564.0,1.67907978]
[1729455736616,0.03967014,68565.0,68564.0,1.67907364]
[1729455736852,0.03967014,68565.0,68564.0,1.67907843]
[1729455737084,0.03967014,68565.0,68564.0,1.63535848]
[1729455737317,0.03967014,68565.0,68564.0,1.67908275]
[1729455737809,0.03967014,68565.0,68564.0,1.63535848]
[1729455738010,0.028656,68565.0,68564.0,1.63535848]
[1729455738278,0.03966748,68565.0,68564.0,1.63535848]
[1729455739454,0.028656,68565.0,68564.0,1.63535848]
[1729455739683,0.028656,68565.0,68564.0,1.7009222]
[1729455739909,0.028656,68565.0,68564.0,1.6442521]
[1729455740135,0.028656,68565.0,68564.0,1.63771598]
[1729455740342,0.028656,68565.0,68564.0,1.64427452]
[1729455742882,0.028656,68565.0,68564.0,1.70983824]
[1729455744065,0.028656,68565.0,68564.0,1.64427452]
[1729455745218,0.028656,68565.0,68564.0,1.70987216]
[1729455745475,0.028656,68565.0,68564.0,1.64427452]
[1729455745938,0.028656,68565.0,68564.0,1.70987216]
[1729455746176,0.03966769,68565.0,68564.0,1.70987216]
[1729455746414,0.03966769,68565.0,68564.0,1.64427452]
[1729455747112,0.03966769,68565.0,68564.0,1.70987216]
[1729455747347,0.03966769,68565.0,68564.0,1.61147425]
[1729455747591,0.03966769,68565.0,68564.0,1.59398092]
[1729455747854,0.03966769,68565.0,68564.0,1.70987007]
[1729455748091,0.03966769,68565.0,68564.0,1.73173576]
[1729455748753,0.03966769,68565.0,68564.0,1.66613812]
[1729455749190,0.03966769,68565.0,68564.0,1.73173576]
[1729455749399,0.03966769,68565.0,68564.0,1.66613812]
[1729455751154,0.03966769,68565.0,68564.0,1.6661382]
[1729455751586,0.03966769,68565.0,68564.0,1.61584661]
[1729455753201,0.03966769,68565.0,68564.0,1.65957879]
[1729455753409,0.03966769,68565.0,68564.0,1.61584661]
[1729455753855,0.03966769,68565.0,68564.0,1.65957838]
[1729455754075,0.03966769,68565.0,68564.0,1.61584661]
[1729455754350,0.03966769,68565.0,68564.0,1.65957843]
[1729455754983,0.03966769,68565.0,68564.0,1.63771284]
[1729455755197,0.03966769,68565.0,68564.0,1.61584786]
[1729455756265,0.03966769,68565.0,68564.0,1.61584726]
[1729455756489,0.03966769,68565.0,68564.0,1.65957525]
[1729455756705,0.03966769,68565.0,68564.0,1.65957463]
[1729455758025,0.03966769,68565.0,68564.0,1.61584726]
[1729455758265,0.03966769,68565.0,68564.0,1.65957359]
[1729455758682,0.03966769,68565.0,68564.0,1.65957126]
[1729455758897,0.03966769,68565.0,68564.0,1.61584341]
[1729455759122,0.03966769,68565.0,68564.0,1.65956775]
[1729455759774,0.03966769,68565.0,68564.0,1.61584341]
[1729455759989,0.03966769,68565.0,68564.0,1.65956783]
[1729455760201,0.03966769,68565.0,68564.0,1.61584353]
[1729455760619,0.03966769,68565.0,68564.0,1.65956837]
[1729455760905,0.03966769,68565.0,68564.0,1.61584353]
[1729455761114,0.028656,68565.0,68564.0,1.61584353]
[1729455761326,0.03966769,68565.0,68564.0,1.61584353]
[1729455762177,0.03966769,68565.0,68564.0,1.68142954]
[1729455762594,0.03966769,68565.0,68564.0,1.61584353]
[1729455763266,0.03966769,68565.0,68564.0,1.65956858]
[1729455763514,0.03966769,68565.0,68564.0,1.61584353]
[1729455763728,0.03966769,68565.0,68564.0,1.68143032]
[1729455763945,0.03966769,68565.0,68564.0,1.61584353]
[1729455765967,0.03966769,68565.0,68564.0,1.68143032]
[1729455766174,0.03966769,68565.0,68564.0,1.61584353]
[1729455766824,0.03966769,68565.0,68564.0,1.61584334]
[1729455768498,0.03966769,68565.0,68564.0,1.68142075]
[1729455768765,0.03966769,68565.0,68564.0,1.61584334]
[1729455769166,0.03966769,68565.0,68564.0,1.68142075]
[1729455770239,0.03966769,68565.0,68564.0,1.65955722]
[1729455770464,0.03966769,68565.0,68564.0,1.68142003]
[1729455771782,0.03966769,68565.0,68564.0,1.61584262]
[1729455772201,0.03966769,68565.0,68564.0,1.68142003]
[1729455773316,0.03966769,68565.0,68564.0,1.68142301]
[1729455773760,0.03966769,68565.0,68564.0,1.61584262]
[1729455774276,0.03966769,68565.0,68564.0,1.61584231]
[1729455774975,0.03966769,68565.0,68564.0,1.6814227]
[1729455776446,0.03966769,68565.0,68564.0,1.61584231]
[1729455776684,0.03966769,68565.0,68564.0,1.68142622]
[1729455777857,0.03966769,68565.0,68564.0,1.67253387]
[1729455778094,0.03966769,68565.0,68564.0,1.68142626]
[1729455778321,0.03966769,68565.0,68564.0,1.68142874]
[1729455778509,0.03966769,68565.0,68564.0,1.61584235]
[1729455778737,0.03966769,68565.0,68564.0,1.68142889]
[1729455778978,0.03966769,68565.0,68564.0,1.61584235]
[1729455779217,0.028656,68565.0,68564.0,1.61584235]
[1729455779430,0.028656,68565.0,68564.0,1.68142698]
[1729455779661,0.028656,68565.0,68564.0,1.61584235]
[1729455780114,0.028656,68565.0,68564.0,1.70329087]
[1729455780342,0.028656,68565.0,68564.0,1.61584235]
[1729455780802,0.028656,68565.0,68564.0,1.70329087]
[1729455781027,0.028656,68565.0,68564.0,1.61584235]
[1729455783083,0.028656,68565.0,68564.0,1.70329255]
[1729455783651,0.028656,68565.0,68564.0,1.61584235]
[1729455785359,0.028656,68565.0,68564.0,1.68143055]
[1729455785592,0.028656,68565.0,68564.0,1.61584235]
[1729455787225,0.028656,68565.0,68564.0,1.68143006]
[1729455787439,0.028656,68565.0,68564.0,1.61584235]
[1729455788742,0.028656,68565.0,68564.0,1.6814265]
[1729455790051,0.028656,68565.0,68564.0,1.61584235]
[1729455791163,0.028656,68565.0,68564.0,1.68142646]
[1729455791648,0.028656,68565.0,68564.0,1.61584231]
[1729455792082,0.028656,68565.0,68564.0,1.68142597]
[1729455792957,0.028656,68565.0,68564.0,1.61584231]
[1729455794118,0.028656,68565.0,68564.0,1.68142672]
[1729455794329,0.028656,68565.0,68564.0,1.61584231]
[1729455794980,0.028656,68565.0,68564.0,1.68142617]
[1729455795455,0.028656,68565.0,68564.0,1.61584231]
[1729455795671,0.028656,68565.0,68564.0,1.70328779]
[1729455796125,0.028656,68565.0,68564.0,1.80018779]
[1729455797023,0.028656,68565.0,68564.0,1.71274231]
[1729455797265,0.028656,68565.0,68564.0,1.80018779]
[1729455799047,0.028656,68565.0,68564.0,1.71274231]
[1729455799268,0.028656,68565.0,68564.0,1.6908795]
[1729455799495,0.028656,68565.0,68564.0,1.71273984]
[1729455801333,0.028656,68565.0,68564.0,1.8220467]
[1729455801776,0.028656,68565.0,68564.0,1.86858884]
[1729455802257,0.028656,68565.0,68564.0,1.72273984]
[1729455803408,0.028656,68565.0,68564.0,1.72272565]
[1729455803662,0.028656,68565.0,68564.0,1.7356879]
[1729455803918,0.028656,68565.0,68564.0,1.7445726]
[1729455804597,0.028656,68565.0,68564.0,1.8904216]
[1729455805255,0.028656,68565.0,68564.0,1.9678216]
[1729455806592,0.028656,68565.0,68564.0,1.9658216]
[1729455806810,0.028656,68565.0,68564.0,2.01331667]
[1729455807045,0.001791,68565.0,68564.0,2.01331667]
[1729455807302,0.001791,68565.0,68564.0,1.96781709]
[1729455807540,0.001791,68565.0,68564.0,2.11677624]
[1729455808247,0.001656,68565.0,68564.0,2.11677624]
[1729455811088,0.001656,68565.0,68564.0,2.11674157]
[1729455811763,0.001656,68565.0,68564.0,2.0948912]
[1729455814917,0.001656,68565.0,68564.0,2.14029947]
[1729455815096,0.001656,68565.0,68564.0,2.14028132]
[1729455815356,0.001656,68565.0,68564.0,2.09487305]
[1729455815572,0.001656,68565.0,68564.0,2.14028064]
[1729455816006,0.001656,68565.0,68564.0,2.14110864]
[1729455816474,0.001656,68565.0,68564.0,2.09570105]
[1729455817134,0.22012222,68575.0,68574.0,0.018828]
[1729455817377,0.22012222,68575.0,68574.0,1.6758199]
[1729455817596,0.001656,68575.0,68574.0,1.6758199]
[1729455818265,0.001656,68575.0,68574.0,1.74119853]
[1729455818480,0.001656,68575.0,68574.0,1.6758199]
[1729455819168,0.001656,68575.0,68574.0,1.55177359]
[1729455820050,0.001656,68575.0,68574.0,1.55177058]
[1729455820285,0.001656,68575.0,68574.0,1.50819778]
[1729455820743,0.001656,68575.0,68574.0,1.5517696]
[1729455821181,0.001656,68575.0,68574.0,1.50819778]
[1729455821432,0.21743222,68582.0,68580.0,0.005]
[1729455821649,0.21743222,68582.0,68581.0,1.44108263]
[1729455821859,0.1819,68583.0,68582.0,0.003828]
[1729455822079,0.1819,68583.0,68582.0,1.44481063]
[1729455822527,0.19713354,68583.0,68582.0,1.44481063]
[1729455822737,0.19713354,68583.0,68582.0,1.58979169]
[1729455822981,0.19713354,68583.0,68582.0,1.58090906]
[1729455823220,0.19713354,68583.0,68582.0,1.58977104]
[1729455823451,0.48542787,68583.0,68582.0,1.58977156]
[1729455823675,0.43904154,68583.0,68582.0,1.58977156]
[1729455823910,0.44504154,68583.0,68582.0,1.58977156]
[1729455824138,0.45535512,68583.0,68582.0,1.58977156]
[1729455825231,0.45535512,68583.0,68582.0,1.4447905]
[1729455826749,0.45535512,68583.0,68582.0,1.435928]
[1729455826983,0.45535512,68583.0,68582.0,1.44479439]
[1729455827848,0.45701112,68583.0,68582.0,1.44479439]
[1729455828290,0.31120312,68583.0,68582.0,1.44479439]
[1729455828428,0.31120312,68583.0,68582.0,1.58927383]
[1729455828880,0.45701112,68583.0,68582.0,1.58927383]
[1729455829466,0.21510312,68583.0,68582.0,1.58927383]
[1729455829685,0.36091112,68583.0,68582.0,1.58927383]
[1729455829895,0.21510312,68583.0,68582.0,1.58927383]
[1729455830566,0.21510312,68583.0,68582.0,1.58927944]
[1729455833051,0.36091112,68583.0,68582.0,1.58927944]
[1729455833900,0.21510312,68583.0,68582.0,1.58927944]
[1729455834112,0.21510312,68583.0,68582.0,1.58040744]
[1729455834340,0.21510312,68583.0,68582.0,1.58928371]
[1729455835926,0.36091112,68583.0,68582.0,1.58928371]
[1729455838092,0.21510312,68583.0,68582.0,1.58928927]
[1729455839057,0.21510312,68583.0,68582.0,1.59011627]
[1729455841110,0.21510312,68583.0,68582.0,1.59011645]
[1729455842029,0.36091112,68583.0,68582.0,1.59011645]
[1729455842775,0.21510312,68583.0,68582.0,1.59011645]
[1729455846078,0.21510312,68583.0,68582.0,1.6046747]
[1729455847989,0.21510312,68583.0,68582.0,1.59579269]
[1729455848209,0.21510312,68583.0,68582.0,1.6046776]
[1729455851724,0.21510312,68583.0,68582.0,1.59579449]
[1729455851951,0.21510312,68583.0,68582.0,1.59011824]
[1729455852173,0.21510312,68583.0,68582.0,1.60467932]
[1729455853726,0.21510312,68583.0,68582.0,1.64834422]
[1729455853957,0.21510312,68583.0,68582.0,1.60467932]
[1729455855384,0.21510312,68583.0,68582.0,1.64835612]
[1729455855846,0.21510312,68583.0,68582.0,1.63379468]
[1729455857723,0.36091112,68583.0,68582.0,1.63379641]
[1729455857913,0.36091112,68583.0,68582.0,1.48931697]
[1729455858875,0.36091112,68583.0,68582.0,1.48043294]
[1729455859088,0.36091112,68583.0,68582.0,1.44564071]
[1729455862145,0.36091112,68583.0,68582.0,1.48931877]
[1729455862359,0.36091112,68583.0,68582.0,1.48043378]
[1729455862576,0.36091112,68583.0,68582.0,1.63827835]
[1729455863012,0.36091112,68583.0,68582.0,1.59459957]
[1729455864517,0.21510312,68583.0,68582.0,1.59459957]
[1729455864740,0.36091112,68583.0,68582.0,1.59459957]
[1729455865165,0.13320312,68583.0,68582.0,1.59459957]
[1729455865395,0.27901112,68583.0,68582.0,1.59459957]
[1729455865613,0.26869754,68583.0,68582.0,1.59459957]
[1729455865830,0.27867243,68583.0,68582.0,1.5946001]
[1729455866954,0.03286443,68583.0,68582.0,1.5946001]
[1729455867173,0.27867243,68583.0,68582.0,1.5946001]
[1729455868064,0.27867243,68583.0,68582.0,1.61207787]
[1729455868920,0.30149943,68583.0,68582.0,1.61207787]
[1729455870057,0.30149943,68583.0,68582.0,1.67760214]
[1729455870709,0.30149943,68583.0,68582.0,1.67760812]
[1729455871571,0.30149943,68583.0,68582.0,1.61207787]
[1729455873179,0.30149943,68583.0,68582.0,1.5946001]
[1729455873402,0.30149943,68583.0,68582.0,1.61207872]
[1729455873612,0.30249943,68583.0,68582.0,1.61207872]
[1729455874990,0.30349943,68583.0,68582.0,1.61207872]
[1729455875965,0.05769143,68583.0,68582.0,1.61207872]
[1729455876400,0.30349943,68583.0,68582.0,1.61207872]
[1729455876826,0.30249943,68583.0,68582.0,1.61207872]
[1729455877247,0.30249943,68583.0,68582.0,1.69946551]
[1729455877456,0.30249943,68583.0,68582.0,1.61207872]
[1729455877880,0.30149943,68583.0,68582.0,1.61207872]
[1729455878301,0.30149943,68583.0,68582.0,1.69946551]
[1729455879175,0.27867243,68583.0,68582.0,1.69946551]
[1729455879613,0.27867243,68583.0,68582.0,1.72131414]
[1729455880022,0.27867243,68583.0,68582.0,1.68198759]
[1729455880257,0.27867243,68583.0,68582.0,1.7213148]
[1729455882057,0.27867243,68583.0,68582.0,1.72131376]
[1729455883797,0.03286443,68583.0,68582.0,1.72131236]
[1729455884006,0.27867243,68583.0,68582.0,1.72131236]
[1729455886948,0.27867243,68583.0,68582.0,1.72131207]
[1729455887213,0.27867243,68583.0,68582.0,1.71242542]
[1729455887458,0.27867243,68583.0,68582.0,1.68198584]
[1729455887678,0.27867243,68583.0,68582.0,1.7606361]
[1729455887908,0.03286443,68583.0,68582.0,1.7606361]
[1729455888385,0.13286443,68583.0,68582.0,1.7606361]
[1729455888629,0.13286443,68583.0,68582.0,1.67325064]
[1729455888861,0.27867243,68583.0,68582.0,1.75175275]
[1729455889058,0.27867243,68583.0,68582.0,1.76063893]
[1729455889268,0.27867243,68583.0,68582.0,1.67325064]
[1729455889502,0.27867243,68583.0,68582.0,1.76063913]
[1729455889732,0.13286443,68583.0,68582.0,1.76063913]
[1729455889979,0.13286443,68583.0,68582.0,1.67325046]
[1729455890699,0.13286443,68583.0,68582.0,1.66436428]
[1729455890929,0.13286443,68583.0,68582.0,1.65140324]
[1729455891183,0.13286443,68583.0,68582.0,1.67325034]
[1729455891425,0.03286443,68583.0,68582.0,1.67325034]
[1729455891952,0.12288954,68583.0,68582.0,1.78248216]
[1729455892189,0.13286583,68583.0,68582.0,1.67325034]
[1729455892438,0.13286583,68583.0,68582.0,1.74315686]
[1729455892690,0.13286583,68583.0,68582.0,1.63392504]
[1729455892961,0.12288954,68583.0,68582.0,1.63392504]
[1729455893179,0.13286583,68583.0,68582.0,1.63392504]
[1729455894346,0.13286583,68583.0,68582.0,1.62503893]
[1729455894582,0.13286583,68583.0,68582.0,1.63392427]
[1729455894817,0.13286583,68583.0,68582.0,1.74315609]
[1729455895051,0.11763229,68583.0,68582.0,1.74315609]
[1729455895772,0.01763229,68583.0,68582.0,1.74315609]
[1729455895997,0.11763229,68583.0,68582.0,1.74315609]
[1729455896674,0.26344029,68583.0,68582.0,1.63392427]
[1729455896947,0.11763229,68583.0,68582.0,1.63392427]
[1729455898873,0.01763229,68583.0,68582.0,1.63392427]
[1729455899118,0.01763229,68583.0,68582.0,1.73302427]
[1729455899343,0.007656,68583.0,68582.0,1.73302427]
[1729455901076,0.007656,68583.0,68582.0,1.73300178]
[1729455902964,0.007656,68583.0,68582.0,1.73800178]
[1729455903455,0.007656,68583.0,68582.0,1.74300178]
[1729455904177,0.007656,68583.0,68582.0,1.72116548]
[1729455904417,0.007656,68583.0,68582.0,1.88879808]
[1729455904734,0.007656,68583.0,68582.0,1.70369644]
[1729455904987,0.007656,68583.0,68582.0,1.74298563]
[1729455907389,0.007656,68583.0,68582.0,1.74298072]
[1729455911087,0.001656,68583.0,68582.0,1.74298072]
[1729455911327,0.001656,68583.0,68582.0,1.88879072]
[1729455911563,0.001656,68583.0,68582.0,1.88878956]
[1729455911816,0.001656,68583.0,68582.0,1.84950037]
[1729455912303,0.001656,68583.0,68582.0,1.83062415]
[1729455912530,0.001656,68583.0,68582.0,1.84062415]
[1729455912992,0.001656,68583.0,68582.0,1.69481415]
[1729455913220,0.001656,68583.0,68582.0,1.70369022]
[1729455914159,0.001656,68583.0,68582.0,1.84949988]
[1729455914622,0.001656,68583.0,68582.0,1.70368988]
[1729455915334,0.001656,68583.0,68582.0,1.69368988]
[1729455915589,0.001656,68583.0,68582.0,1.70368988]
[1729455915822,0.001656,68583.0,68582.0,1.84949988]
[1729455916072,0.001656,68583.0,68582.0,1.70368988]
[1729455916577,0.001656,68583.0,68582.0,1.84949988]
[1729455916829,0.001656,68583.0,68582.0,1.70368988]
[1729455918745,0.001656,68583.0,68582.0,1.84949988]
[1729455919029,0.001656,68583.0,68582.0,1.70368988]
[1729455919761,0.001656,68583.0,68582.0,1.70368993]
[1729455920050,0.001656,68583.0,68582.0,1.84949993]
[1729455920536,0.001656,68583.0,68582.0,1.70368993]
[1729455922266,0.001656,68583.0,68582.0,1.84949993]
[1729455922754,0.001656,68583.0,68582.0,1.70368993]
[1729455923231,0.001656,68583.0,68582.0,1.70369063]
[1729455923471,0.001656,68583.0,68582.0,1.84950063]
[1729455924695,0.001656,68583.0,68582.0,1.70369063]
[1729455924946,0.001656,68583.0,68582.0,1.84950063]
[1729455927281,0.001656,68583.0,68582.0,1.70369063]
[1729455928029,0.001656,68583.0,68582.0,1.84950063]
[1729455930239,0.001656,68583.0,68582.0,1.84062415]
[1729455930483,0.001656,68583.0,68582.0,1.84950518]
[1729455933645,0.001656,68583.0,68582.0,1.84062415]
[1729455933902,0.001656,68583.0,68582.0,1.84950282]
[1729455937131,0.001656,68583.0,68582.0,1.84950303]
[1729455941072,0.001656,68583.0,68582.0,1.84950402]
[1729455941521,0.001656,68583.0,68582.0,1.85150402]
[1729455941747,0.001656,68583.0,68582.0,1.84950402]
[1729455942631,0.001656,68583.0,68582.0,1.89497576]
[1729455942848,0.001656,68583.0,68582.0,1.84950402]
[1729455943468,0.001656,68583.0,68582.0,1.89497537]
[1729455943705,0.001656,68583.0,68582.0,1.84950402]
[1729455943933,0.001656,68583.0,68582.0,1.85150402]
[1729455944148,0.001656,68583.0,68582.0,1.84950402]
[1729455944362,0.001656,68583.0,68582.0,1.85150402]
[1729455944590,0.001656,68583.0,68582.0,1.97154711]
[1729455944830,0.001656,68583.0,68582.0,1.98042686]
[1729455945065,0.001656,68583.0,68582.0,1.84950392]
[1729455945592,0.001656,68583.0,68582.0,1.93180105]
[1729455946275,0.001656,68583.0,68582.0,1.93180091]
[1729455947169,0.001656,68583.0,68582.0,1.88632688]
[1729455947392,0.001656,68583.0,68582.0,1.93180143]
[1729455947620,0.001656,68583.0,68582.0,1.75540392]
[1729455947837,0.001656,68583.0,68582.0,1.75740392]
[1729455948042,0.001656,68583.0,68582.0,1.75540392]
[1729455948529,0.001656,68583.0,68582.0,1.75540405]
[1729455949644,0.001656,68583.0,68582.0,1.93182297]
[1729455949894,0.001656,68583.0,68582.0,1.88634559]
[1729455950107,0.001656,68583.0,68582.0,1.75540405]
[1729455951262,0.001656,68583.0,68582.0,1.93182599]
[1729455952127,0.001656,68583.0,68582.0,1.80088445]
[1729455952354,0.001656,68583.0,68582.0,1.93184249]
[1729455952789,0.001656,68583.0,68582.0,1.93184792]
[1729455953214,0.001656,68583.0,68582.0,1.80088445]
[1729455953731,0.001656,68583.0,68582.0,1.93184475]
[1729455955142,0.001656,68583.0,68582.0,1.80088445]
[1729455955674,0.001656,68583.0,68582.0,1.93184873]
[1729455955871,0.001656,68583.0,68582.0,1.87748843]
[1729455956080,0.001656,68583.0,68582.0,1.88636929]
[1729455956298,0.001656,68583.0,68582.0,1.93185006]
[1729455956512,0.001656,68583.0,68582.0,1.80088578]
[1729455956953,0.001656,68583.0,68582.0,1.88637721]
[1729455957189,0.001656,68583.0,68582.0,1.93185869]
[1729455957389,0.001656,68583.0,68582.0,1.88637721]
[1729455957846,0.001656,68583.0,68582.0,1.8008863]
[1729455963105,0.001652,68587.0,68582.0,1.8971863]
[1729455963335,0.001652,68587.0,68586.0,0.29557185]
[1729455963558,0.001652,68587.0,68586.0,1.782034]
[1729455964267,0.001652,68587.0,68586.0,1.78201586]
[1729455964971,0.001652,68587.0,68586.0,1.78199456]
[1729455965222,0.001652,68587.0,68586.0,1.80736813]
[1729455965454,0.001652,68587.0,68586.0,1.76190814]
[1729455966426,0.001652,68587.0,68586.0,1.76190239]
[1729455966651,0.001652,68587.0,68586.0,1.62210357]
[1729455966871,0.001652,68587.0,68586.0,1.7619018]
[1729455968010,0.001652,68587.0,68586.0,1.63097809]
[1729455968268,0.001652,68587.0,68586.0,1.7619018]
[1729455968511,0.001652,68587.0,68586.0,1.67642348]
[1729455969386,0.001652,68587.0,68586.0,1.80730123]
[1729455969607,0.001652,68587.0,68586.0,1.67642348]
[1729455970053,0.001652,68587.0,68586.0,1.76184579]
[1729455970508,0.001652,68587.0,68586.0,1.80728102]
[1729455970729,0.001652,68587.0,68586.0,1.6764106]
[1729455970950,0.001652,68587.0,68586.0,1.80726977]
[1729455971185,0.001652,68587.0,68586.0,1.76183454]
[1729455971415,0.001652,68587.0,68586.0,1.76183553]
[1729455971861,0.001652,68587.0,68586.0,1.69385196]
[1729455972300,0.001652,68587.0,68586.0,1.8246926]
[1729455972560,0.001652,68587.0,68586.0,1.82469247]
[1729455972787,0.001652,68587.0,68586.0,1.77926048]
[1729455973486,0.001652,68587.0,68586.0,1.69384706]
[1729455973705,0.001652,68587.0,68586.0,1.67640016]
[1729455973931,0.001652,68587.0,68586.0,1.82467646]
[1729455974188,0.001652,68587.0,68586.0,1.82467655]
[1729455974407,0.01523117,68603.0,68596.0,0.164609]
[1729455974627,0.0829,68604.0,68596.0,1.62302082]
[1729455974628,0.22011822,68600.0,68596.0,1.62302082]
[1729455974847,0.001652,68600.0,68596.0,1.62302082]
[1729455975330,0.001652,68600.0,68596.0,1.77197997]
[1729455975806,0.001652,68600.0,68596.0,1.90277483]
[1729455976043,0.001652,68600.0,68596.0,1.99547483]
[1729455976274,0.001652,68600.0,68596.0,1.91296712]
[1729455977228,0.001652,68600.0,68596.0,1.89552489]
[1729455977452,0.001652,68600.0,68596.0,1.91294403]
[1729455981294,0.001652,68600.0,68596.0,1.89550486]
[1729455981507,0.001652,68600.0,68596.0,1.91290912]
[1729455984484,0.001652,68600.0,68596.0,2.02166557]
[1729455984726,0.001652,68600.0,68596.0,1.7939553]
[1729455984947,0.001652,68600.0,68596.0,1.9072105]
[1729455985177,0.001652,68600.0,68596.0,1.82020237]
[1729455985403,0.001652,68600.0,68596.0,1.9072063]
[1729455985838,0.001652,68600.0,68596.0,1.92895882]
[1729455986070,0.001652,68600.0,68596.0,1.82020237]
[1729455986303,0.001652,68600.0,68596.0,1.90720413]
[1729455986773,0.001652,68600.0,68596.0,1.82020237]
[1729455987692,0.001652,68600.0,68596.0,1.90719663]
[1729455987925,0.001652,68600.0,68596.0,1.82020237]
[1729455988196,0.001652,68600.0,68596.0,1.90719559]
[1729455988440,0.001652,68600.0,68596.0,1.82020381]
[1729455988658,0.001652,68600.0,68596.0,1.80280405]
[1729455990951,0.001652,68600.0,68596.0,1.88978615]
[1729455991882,0.001652,68600.0,68596.0,1.80280405]
[1729455996006,0.001652,68600.0,68596.0,1.80280866]
[1729455998530,0.001652,68600.0,68596.0,1.91152993]
[1729456002633,0.001652,68600.0,68596.0,1.80280866]
[1729456005292,0.001652,68600.0,68599.0,0.018828]
[1729456005497,0.001652,68600.0,68599.0,1.71788043]
[1729456006142,0.001652,68600.0,68599.0,1.63084794]
[1729456006360,0.001652,68600.0,68599.0,1.71788932]
[1729456007231,0.001652,68600.0,68599.0,1.63084794]
[1729456007467,0.001652,68600.0,68599.0,1.71790469]
[1729456008094,0.001652,68600.0,68599.0,1.63084794]
[1729456009353,0.001652,68600.0,68599.0,1.73963855]
[1729456010660,0.001652,68600.0,68599.0,1.73963895]
[1729456012329,0.001652,68600.0,68599.0,1.63084834]
[1729456013877,0.001652,68600.0,68599.0,1.6308488]
[1729456015266,0.001652,68600.0,68599.0,1.67629354]
[1729456017358,0.001652,68600.0,68599.0,1.6762952]
[1729456018261,0.001652,68600.0,68599.0,1.48507646]
[1729456018709,0.001652,68600.0,68599.0,1.63085046]
[1729456020047,0.001652,68600.0,68599.0,1.48507646]
[1729456020269,0.001652,68600.0,68599.0,1.61590746]
[1729456020487,0.01156338,68600.0,68599.0,1.61590746]
[1729456020704,0.01156338,68600.0,68599.0,1.61590763]
[1729456021131,0.001652,68600.0,68599.0,1.61590763]
[1729456022813,0.001652,68600.0,68599.0,1.48507663]
[1729456023019,0.001652,68600.0,68599.0,1.61597189]
[1729456023253,0.001652,68600.0,68599.0,1.60709683]
[1729456023458,0.001652,68600.0,68599.0,1.61597112]
[1729456023687,0.001652,68600.0,68599.0,1.61597113]
[1729456027758,0.001652,68600.0,68599.0,1.61597007]
[1729456029423,0.001652,68600.0,68599.0,1.71597007]
[1729456030455,0.001652,68600.0,68599.0,1.70709577]
[1729456030696,0.001652,68600.0,68599.0,1.71597045]
[1729456031526,0.001652,68600.0,68599.0,1.71598724]
[1729456032346,0.001652,68600.0,68599.0,1.63052701]
[1729456032549,0.001652,68600.0,68599.0,1.58507625]
[1729456032747,0.001652,68600.0,68599.0,1.86175396]
[1729456034221,0.001652,68600.0,68599.0,1.71597996]
[1729456034458,0.001652,68600.0,68599.0,1.70710528]
[1729456036036,0.001652,68600.0,68599.0,1.71597996]
[1729456037061,0.001652,68600.0,68599.0,1.57620157]
[1729456037914,0.001652,68600.0,68599.0,1.550828]
[1729456038553,0.001652,68600.0,68599.0,1.55970253]
[1729456038776,0.001652,68600.0,68599.0,1.54970253]
[1729456039180,0.01156276,68600.0,68599.0,1.54970253]
[1729456039407,0.001652,68600.0,68599.0,1.540828]
[1729456039609,0.01156276,68600.0,68599.0,1.540828]
[1729456039813,0.001652,68600.0,68599.0,1.540828]
[1729456040027,0.01156276,68600.0,68599.0,1.540828]
[1729456040234,0.001652,68600.0,68599.0,1.540828]
[1729456040441,0.01156276,68600.0,68599.0,1.540828]
[1729456040648,0.001652,68600.0,68599.0,1.540828]
[1729456040869,0.01156768,68600.0,68599.0,1.686602]
[1729456041087,0.001652,68600.0,68599.0,1.96646472]
[1729456042609,0.001652,68600.0,68599.0,1.83556115]
[1729456043044,0.001652,68600.0,68599.0,1.82069072]
[1729456043492,0.001652,68600.0,68599.0,1.67173157]
[1729456044371,0.001652,68600.0,68599.0,1.81750557]
[1729456045515,0.001652,68600.0,68599.0,1.67173157]
[1729456045718,0.001652,68600.0,68599.0,1.81750557]
[1729456046602,0.001652,68600.0,68599.0,1.67173157]
[1729456047034,0.001652,68600.0,68599.0,1.81750557]
[1729456047454,0.001652,68600.0,68599.0,1.686602]
[1729456048299,0.001652,68600.0,68599.0,1.69751266]
[1729456048945,0.001652,68600.0,68599.0,1.71497056]
[1729456049636,0.001652,68600.0,68599.0,1.86392971]
[1729456050091,0.001652,68600.0,68599.0,1.71815503]
[1729456051357,0.001652,68600.0,68599.0,1.86392903]
[1729456051564,0.001652,68600.0,68599.0,1.71496988]
[1729456053567,0.001652,68600.0,68599.0,1.70405916]
[1729456053775,0.001652,68600.0,68599.0,1.6975127]
[1729456054856,0.0015354,68600.0,68599.0,1.82841437]
[1729456055274,0.0015354,68600.0,68599.0,1.6975127]
[1729456055482,0.0015354,68600.0,68599.0,1.97737352]
[1729456055923,0.0015354,68600.0,68599.0,1.84647185]